[Event "Centenario Panaderia Pulido 2023"]
[Site "San Mateo Gran Canaria"]
[Date "2023.12.08"]
[Round "8.9"]
[White "Medina Martin, Alberto"]
[Black "Mamani Beltran, Deniman"]
[Result "1/2-1/2"]
[ECO "A53"]
[WhiteElo "2105"]
[BlackElo "2151"]
[Annotator "RC"]
[PlyCount "93"]
[EventDate "2023.12.04"]
[EventType "swiss"]
[EventCountry "ESP"]
[SourceTitle "playchess.com"]
[Source "ChessBase"]
[SourceQuality "1"]
[TimeControl "5400+30"]

1. d4 {[%emt 0:00:03]} Nf6 {[%emt 0:01:11]} 2. c4 {[%emt 0:00:15]} d6 {[%emt 0:00:04]} 3. Nf3 {[%emt 0:00:11]} Nbd7 {[%emt 0:00:20]} 4. g3 {[%emt 0:00:29]} c6 {[%emt 0:01:25]} 5. Bg2 {[%emt 0:01:18]} Qa5+ {[%emt 0:02:09]} 6. Qd2 {[%emt 0:01:28]} Qxd2+ {[%emt 0:01:10]} 7. Nbxd2 {[%emt 0:00:03]} a5 {[%emt 0:00:58]} 8. b3 {[%emt 0:01:34]} e5 {[%emt 0:01:51]} 9. e3 {[%emt 0:01:37]} e4 {[%emt 0:07:33]} 10. Ng5 {[%emt 0:00:07]} d5 {[%emt 0:00:05]} 11. O-O {[%emt 0:00:33]} h6 {[%emt 0:01:38]} 12. Nh3 {[%emt 0:00:09]} g5 {[%emt 0:00:05]} 13. Bb2 {[%emt 0:01:57]} Bd6 {[%emt 0:27:23]} 14. a4 {[%emt 0:06:16]} Bb4 {[%emt 0:04:37]} 15. Nb1 {[%emt 0:01:34]} Nb6 {[%emt 0:00:07]} 16. c5 {[%emt 0:00:21]} Nbd7 {[%emt 0:00:05]} 17. Ba3 {[%emt 0:00:18]} Bxa3 {[%emt 0:00:28]} 18. Nxa3 {[%emt 0:00:48]} Nb8 {[%emt 0:05:26]} 19. Rfe1 {[%emt 0:03:46]} Na6 {[%emt 0:00:51]} 20. Nc2 {[%emt 0:01:09]} Nd7 {[%emt 0:02:35]} 21. Kh1 {[%emt 0:00:29]} f5 {[%emt 0:00:22]} 22. Ng1 {[%emt 0:00:42]} Nf8 {[%emt 0:00:49]} 23. f4 {[%emt 0:01:31]} Rb8 {[%emt 0:06:40]} 24. Bf1 {[%emt 0:02:54]} b6 {[%emt 0:01:02]} 25. Bxa6 {[%emt 0:04:13]} Bxa6 {[%emt 0:00:05]} 26. cxb6 {[%emt 0:00:09]} Rxb6 {[%emt 0:01:41]} 27. Rab1 {[%emt 0:01:27]} Bd3 {[%emt 0:00:05]} 28. Rb2 {[%emt 0:00:05]} Kd7 {[%emt 0:01:12]} 29. Na1 {[%emt 0:00:13]} Ne6 {[%emt 0:02:17]} 30. Rd2 {[%emt 0:02:45]} c5 {[%emt 0:04:12]} 31. Nf3 {[%emt 0:01:09]} cxd4 {[%emt 0:12:16]} 32. Ne5+ {[%emt 0:00:11]} Ke7 {[%emt 0:00:22]} 33. Ng6+ {[%emt 0:02:18]} Kf6 {[%emt 0:00:05]} 34. Nxh8 {[%emt 0:00:10]} dxe3 {[%emt 0:01:46]} 35. Rxe3 {[%emt 0:00:42]} d4 {[%emt 0:00:28]} 36. Rexd3 {[%emt 0:02:05]} exd3 {[%emt 0:00:08]} 37. fxg5+ {[%emt 0:00:23]} hxg5 {[%emt 0:00:05]} 38. Rxd3 {[%emt 0:00:37]} Rb8 {[%emt 0:00:53]} 39. Nc2 {[%emt 0:03:01]} Rxh8 {[%emt 0:00:05]} 40. b4 {[%emt 0:00:03]} Rc8 {[%emt 0:00:15]} 41. Rd2 {[%emt 0:00:43]} d3 {[%emt 0:00:52]} 42. Ne3 {[%emt 0:00:01]} Rd8 {[%emt 0:01:39]} 43. bxa5 {[%emt 0:00:14]} f4 {[%emt 0:01:26]} 44. gxf4 {[%emt 0:00:11]} gxf4 {[%emt 0:00:06]} 45. Ng4+ {[%emt 0:00:38]} Kf5 {[%emt 0:00:27]} 46. Nf2 {[%emt 0:00:09]} Nc5 {[%emt 0:00:17]} 47. Kg2 {[%emt 1:03:01]} 1/2-1/2

[Event "Centenario Panaderia Pulido 2023"]
[Site "San Mateo Gran Canaria"]
[Date "2023.12.08"]
[Round "8.10"]
[White "Bergero, Simone"]
[Black "Rivero Tacoronte, Gabriel"]
[Result "1-0"]
[ECO "B11"]
[WhiteElo "2010"]
[BlackElo "1695"]
[Annotator "NA RC"]
[PlyCount "33"]
[EventDate "2023.12.04"]
[EventType "swiss"]
[EventCountry "ESP"]
[SourceTitle "playchess.com"]
[Source "ChessBase"]
[SourceQuality "1"]
[TimeControl "5400+30"]

1. e4 {[%emt 0:00:01]} c6 {[%emt 0:00:05]} 2. Nf3 {[%emt 0:00:05]} d5 {[%emt 0:00:07]} 3. Nc3 {[%emt 0:00:03]} Bg4 {[%emt 0:00:08]} 4. h3 {[%emt 0:00:05]} Bxf3 {[%emt 0:00:04]} 5. Qxf3 {[%emt 0:00:03]} e6 {[%emt 0:00:09]} 6. d4 {[%emt 0:00:04]} dxe4 {[%emt 0:00:44]} 7. Nxe4 {[%emt 0:00:09]} Qxd4 {[%emt 0:05:55]} 8. Bg5 {[%emt 0:00:44]} Be7 {[%emt 0:19:14]} 9. Bxe7 {[%emt 0:04:16]} Kxe7 {[%emt 0:01:04]} 10. Qa3+ {[%emt 0:00:05]} c5 {[%emt 0:07:34]} 11. Nxc5 {[%emt 0:00:56]} Kf6 {[%emt 0:00:16]} 12. Qf3+ {[%emt 0:02:29]} Kg6 {[%emt 0:01:01]} 13. Ne4 {[%emt 0:05:40]} f5 {[%emt 0:02:36]} 14. Qg3+ {[%emt 0:00:14]} Kf7 {[%emt 0:00:09]} 15. Nd6+ {[%emt 0:00:58]} Ke7 {[%emt 0:01:24]} 16. Rd1 {[%emt 0:00:49]} Qxb2 {[%emt 0:01:37]} 17. Nxf5+ {[%emt 0:02:46]} 1-0

[Event "Centenario Panaderia Pulido 2023"]
[Site "San Mateo Gran Canaria"]
[Date "2023.12.08"]
[Round "8.11"]
[White "Perez Celis, Alba"]
[Black "Camino Carrio, Nicanor"]
[Result "0-1"]
[ECO "B51"]
[WhiteElo "1779"]
[BlackElo "1948"]
[Annotator "RC"]
[PlyCount "68"]
[EventDate "2023.12.04"]
[EventType "swiss"]
[EventCountry "ESP"]
[SourceTitle "playchess.com"]
[Source "ChessBase"]
[SourceQuality "1"]
[TimeControl "5400+30"]

1. e4 {[%emt 0:05:11]} c5 {[%emt 0:00:16]} 2. Nf3 {[%emt 0:00:21]} d6 {[%emt 0:00:19]} 3. Bb5+ {[%emt 0:00:28]} Nd7 {[%emt 0:00:53]} 4. c3 {[%emt 0:00:28]} Ngf6 {[%emt 0:00:28]} 5. Qe2 {[%emt 0:00:21]} e6 {[%emt 0:02:06]} 6. O-O {[%emt 0:03:14]} Be7 {[%emt 0:00:26]} 7. d4 {[%emt 0:01:16]} cxd4 {[%emt 0:00:34]} 8. cxd4 {[%emt 0:00:08]} O-O {[%emt 0:00:13]} 9. Nc3 {[%emt 0:00:46]} a6 {[%emt 0:00:33]} 10. Bd3 {[%emt 0:05:40]} e5 {[%emt 0:00:48]} 11. dxe5 {[%emt 0:09:39]} Nxe5 {[%emt 0:00:18]} 12. Nxe5 {[%emt 0:00:56]} dxe5 {[%emt 0:00:05]} 13. Rd1 {[%emt 0:01:21]} Bg4 {[%emt 0:01:53]} 14. f3 {[%emt 0:00:13]} Be6 {[%emt 0:00:05]} 15. Be3 {[%emt 0:04:01]} Nd7 {[%emt 0:04:14]} 16. Rd2 {[%emt 0:09:46]} Qc7 {[%emt 0:06:53]} 17. Nd5 {[%emt 0:04:31]} Bxd5 {[%emt 0:00:33]} 18. exd5 {[%emt 0:00:06]} Bc5 {[%emt 0:00:55]} 19. Rc2 {[%emt 0:01:19]} Qd6 {[%emt 0:00:55]} 20. Rac1 {[%emt 0:02:28]} Bxe3+ {[%emt 0:05:36]} 21. Qxe3 {[%emt 0:00:33]} Nf6 {[%emt 0:00:09]} 22. Qc5 {[%emt 0:08:46]} Qxd5 {[%emt 0:02:00]} 23. Qxd5 {[%emt 0:01:35]} Nxd5 {[%emt 0:00:08]} 24. Be4 {[%emt 0:01:03]} Rad8 {[%emt 0:00:25]} 25. Rc5 {[%emt 0:06:52]} Nf4 {[%emt 0:00:35]} 26. R1c2 {[%emt 0:00:58]} f5 {[%emt 0:02:08]} 27. Bxb7 {[%emt 0:02:52]} Rd1+ {[%emt 0:00:10]} 28. Kf2 {[%emt 0:01:18]} Nd3+ {[%emt 0:00:07]} 29. Ke2 {[%emt 0:00:47]} Nxc5 {[%emt 0:00:17]} 30. Rxc5 {[%emt 0:00:38]} Rb1 {[%emt 0:00:21]} 31. Bd5+ {[%emt 0:07:32]} Kh8 {[%emt 0:00:06]} 32. Rc2 {[%emt 0:00:28]} g6 {[%emt 0:01:08]} 33. Kf2 {[%emt 0:01:38]} Rd8 {[%emt 0:00:48]} 34. Bb7 {[%emt 0:03:40]} Rb8 {[%emt 0:00:00]} 0-1

[Event "Centenario Panaderia Pulido 2023"]
[Site "San Mateo Gran Canaria"]
[Date "2023.12.08"]
[Round "8.12"]
[White "Rivero Castellano, Carlos Jesus"]
[Black "Garbezza, Davide"]
[Result "0-1"]
[ECO "D05"]
[WhiteElo "1726"]
[BlackElo "1860"]
[Annotator "NA RC"]
[PlyCount "58"]
[EventDate "2023.12.04"]
[EventType "swiss"]
[EventCountry "ESP"]
[SourceTitle "playchess.com"]
[Source "ChessBase"]
[SourceQuality "1"]
[TimeControl "5400+30"]

1. d4 {[%emt 0:00:03]} d5 {[%emt 0:00:08]} 2. Nf3 {[%emt 0:00:14]} e6 {[%emt 0:00:08]} 3. e3 {[%emt 0:00:20]} Nf6 {[%emt 0:00:11]} 4. Bd3 {[%emt 0:00:10]} b6 {[%emt 0:00:12]} 5. O-O {[%emt 0:00:36]} Bb7 {[%emt 0:00:12]} 6. b3 {[%emt 0:00:52]} Bd6 {[%emt 0:00:17]} 7. Bb2 {[%emt 0:00:42]} O-O {[%emt 0:00:13]} 8. Ne5 {[%emt 0:01:57]} c5 {[%emt 0:04:33]} 9. f4 {[%emt 0:00:53]} Nc6 {[%emt 0:07:04]} 10. a3 {[%emt 0:01:27]} Rc8 {[%emt 0:04:51]} 11. Nd2 {[%emt 0:01:31]} Ne7 {[%emt 0:02:06]} 12. g4 {[%emt 0:05:06]} Ne4 {[%emt 0:06:30]} 13. Nxe4 {[%emt 0:03:36]} dxe4 {[%emt 0:00:07]} 14. Be2 {[%emt 0:09:01]} Nd5 {[%emt 0:19:41]} 15. Qd2 {[%emt 0:02:57]} Bb8 {[%emt 0:14:40]} 16. a4 {[%emt 0:11:59]} Bxe5 {[%emt 0:06:23]} 17. fxe5 {[%emt 0:01:37]} Qg5 {[%emt 0:01:31]} 18. Bc1 {[%emt 0:00:40]} cxd4 {[%emt 0:01:41]} 19. Qxd4 {[%emt 0:06:04]} Rxc2 {[%emt 0:06:27]} 20. Bd1 {[%emt 0:00:57]} Nc3 {[%emt 0:06:51]} 21. Rf2 {[%emt 0:09:10]} Rxf2 {[%emt 0:01:20]} 22. Kxf2 {[%emt 0:01:29]} Qh4+ {[%emt 0:01:09]} 23. Kg2 {[%emt 0:01:06]} Rd8 {[%emt 0:00:43]} 24. Qxc3 {[%emt 0:01:39]} Rxd1 {[%emt 0:00:02]} 25. h3 {[%emt 0:00:13]} Ba6 {[%emt 0:01:26]} 26. Qc2 {[%emt 0:05:53]} Qe1 {[%emt 0:00:29]} 27. Qf2 {[%emt 0:01:16]} Qh1+ {[%emt 0:00:48]} 28. Kg3 {[%emt 0:00:23]} Rg1+ {[%emt 0:02:30]} 29. Kh4 {[%emt 0:00:50]} Bf1 {[%emt 0:00:44]} 0-1

[Event "Centenario Panaderia Pulido 2023"]
[Site "San Mateo Gran Canaria"]
[Date "2023.12.08"]
[Round "8.13"]
[White "Garcia Rodriguez, Adriana"]
[Black "Sanchez Gonzalez, Diego"]
[Result "1-0"]
[ECO "B22"]
[WhiteElo "1659"]
[BlackElo "1858"]
[Annotator "NA RC"]
[PlyCount "91"]
[EventDate "2023.12.04"]
[EventType "swiss"]
[EventCountry "ESP"]
[SourceTitle "playchess.com"]
[Source "ChessBase"]
[SourceQuality "1"]
[TimeControl "5400+30"]

1. e4 {[%emt 0:00:04]} c5 {[%emt 0:00:17]} 2. c3 {[%emt 0:00:01]} d5 {[%emt 0:00:07]} 3. exd5 {[%emt 0:00:06]} Qxd5 {[%emt 0:00:11]} 4. d4 {[%emt 0:00:03]} Nc6 {[%emt 0:00:08]} 5. Nf3 {[%emt 0:00:12]} e6 {[%emt 0:00:13]} 6. Be2 {[%emt 0:00:56]} cxd4 {[%emt 0:04:49]} 7. cxd4 {[%emt 0:00:15]} Nf6 {[%emt 0:00:38]} 8. Nc3 {[%emt 0:00:27]} Qd6 {[%emt 0:05:37]} 9. O-O {[%emt 0:00:37]} Be7 {[%emt 0:00:46]} 10. Be3 {[%emt 0:03:10]} O-O {[%emt 0:01:38]} 11. a3 {[%emt 0:00:17]} a6 {[%emt 0:03:03]} 12. Re1 {[%emt 0:02:45]} Rd8 {[%emt 0:02:02]} 13. Qc2 {[%emt 0:01:45]} b5 {[%emt 0:17:11]} 14. b4 {[%emt 0:03:50]} Bb7 {[%emt 0:01:05]} 15. Rad1 {[%emt 0:01:41]} Rac8 {[%emt 0:00:56]} 16. Bd3 {[%emt 0:02:15]} h6 {[%emt 0:01:41]} 17. Qd2 {[%emt 0:00:45]} Nb8 {[%emt 0:03:16]} 18. Ne5 {[%emt 0:09:59]} Nc6 {[%emt 0:07:37]} 19. Nf3 {[%emt 0:02:32]} Nb8 {[%emt 0:06:34]} 20. Ne5 {[%emt 0:00:57]} Qc7 {[%emt 0:05:38]} 21. Rc1 {[%emt 0:03:32]} Nc6 {[%emt 0:05:03]} 22. Ne4 {[%emt 0:04:13]} Nd5 {[%emt 0:13:02]} 23. Bb1 {[%emt 0:08:09]} Nxe3 {[%emt 0:20:28]} 24. fxe3 {[%emt 0:07:24]} Qb6 {[%emt 0:00:00]} 25. Nxc6 {[%emt 0:00:11]} Bxc6 {[%emt 0:00:00]} 26. Nc5 {[%emt 0:03:41]} Bf6 {[%emt 0:00:00]} 27. Ne4 {[%emt 0:05:31]} Bh4 {[%emt 0:00:00]} 28. Re2 {[%emt 0:04:01]} e5 {[%emt 0:00:00]} 29. g3 {[%emt 0:07:37]} Be7 {[%emt 0:02:16]} 30. Rd1 {[%emt 0:01:41]} exd4 {[%emt 0:00:35]} 31. exd4 {[%emt 0:00:05]} Bxe4 {[%emt 0:00:22]} 32. Rxe4 {[%emt 0:00:38]} Bf6 {[%emt 0:00:06]} 33. Kf1 {[%emt 0:02:05]} Rd5 {[%emt 0:01:00]} 34. Qe3 {[%emt 0:00:24]} Qc6 {[%emt 0:00:10]} 35. Re1 {[%emt 0:01:05]} Qc4+ {[%emt 0:00:54]} 36. Bd3 {[%emt 0:00:17]} Rf5+ {[%emt 0:00:14]} 37. Kg1 {[%emt 0:00:38]} Qd5 {[%emt 0:00:42]} 38. Re8+ {[%emt 0:00:45]} Kh7 {[%emt 0:00:31]} 39. Bxf5+ {[%emt 0:01:27]} g6 {[%emt 0:00:33]} 40. Qe4 {[%emt 0:08:17]} Rxe8 {[%emt 0:00:29]} 41. Qxd5 {[%emt 0:00:48]} Rxe1+ {[%emt 0:00:08]} 42. Kf2 {[%emt 0:00:03]} Re7 {[%emt 0:00:23]} 43. Bc8 {[%emt 0:01:11]} Rc7 {[%emt 0:00:31]} 44. Bxa6 {[%emt 0:00:54]} Rc2+ {[%emt 0:00:07]} 45. Kg1 {[%emt 0:00:16]} Kg7 {[%emt 0:00:28]} 46. Qe4 {[%emt 0:00:48]} 1-0

[Event "Centenario Panaderia Pulido 2023"]
[Site "San Mateo Gran Canaria"]
[Date "2023.12.08"]
[Round "8.14"]
[White "Ramos Santana, Marcelino"]
[Black "Quiceno Ramirez, Edwin Alejandro"]
[Result "0-1"]
[ECO "B23"]
[WhiteElo "1830"]
[BlackElo "1777"]
[Annotator "NA RC"]
[PlyCount "72"]
[EventDate "2023.12.04"]
[EventType "swiss"]
[EventCountry "ESP"]
[SourceTitle "playchess.com"]
[Source "ChessBase"]
[SourceQuality "1"]
[TimeControl "5400+30"]

1. e4 {[%emt 0:06:24]} c5 {[%emt 0:00:22]} 2. Nc3 {[%emt 0:00:28]} Nc6 {[%emt 0:00:29]} 3. Bb5 {[%emt 0:00:07]} Nd4 {[%emt 0:00:09]} 4. Nf3 {[%emt 0:00:14]} g6 {[%emt 0:01:13]} 5. Nxd4 {[%emt 0:02:15]} cxd4 {[%emt 0:00:08]} 6. Ne2 {[%emt 0:00:14]} Bg7 {[%emt 0:01:37]} 7. c3 {[%emt 0:01:07]} a6 {[%emt 0:00:24]} 8. Bc4 {[%emt 1:23:41]} dxc3 {[%emt 0:02:48]} 9. bxc3 {[%emt 0:00:00]} e6 {[%emt 0:01:01]} 10. d4 {[%emt 0:00:00]} d5 {[%emt 0:00:39]} 11. exd5 {[%emt 0:00:00]} exd5 {[%emt 0:00:02]} 12. Bb3 {[%emt 0:00:00]} Ne7 {[%emt 0:01:03]} 13. O-O {[%emt 0:00:00]} O-O {[%emt 0:01:35]} 14. Nf4 {[%emt 0:00:00]} Qd6 {[%emt 0:20:51]} 15. Qf3 {[%emt 0:00:00]} Be6 {[%emt 0:06:01]} 16. a4 {[%emt 0:00:00]} Bh6 {[%emt 0:01:31]} 17. g3 {[%emt 0:00:00]} Bxf4 {[%emt 0:08:07]} 18. Bxf4 {[%emt 0:00:00]} Qc6 {[%emt 0:00:04]} 19. Rfe1 {[%emt 0:00:00]} Rac8 {[%emt 0:17:02]} 20. Rac1 {[%emt 0:00:00]} Qb6 {[%emt 0:00:31]} 21. Bc2 {[%emt 0:00:00]} h5 {[%emt 0:14:25]} 22. Bd2 {[%emt 0:00:00]} Bg4 {[%emt 0:03:08]} 23. Qe3 {[%emt 0:00:00]} Nf5 {[%emt 0:00:14]} 24. Bxf5 {[%emt 0:00:00]} Bxf5 {[%emt 0:00:08]} 25. Qh6 {[%emt 0:00:00]} Rfe8 {[%emt 0:02:09]} 26. Kg2 {[%emt 0:00:00]} a5 {[%emt 0:01:37]} 27. h3 {[%emt 0:00:00]} Qf6 {[%emt 0:00:49]} 28. Be3 {[%emt 0:00:00]} Be4+ {[%emt 0:00:15]} 29. Kh2 {[%emt 0:00:00]} Qf3 {[%emt 0:00:25]} 30. Rg1 {[%emt 0:00:00]} Bf5 {[%emt 0:02:03]} 31. Qf4 {[%emt 0:00:00]} Qxf4 {[%emt 0:00:20]} 32. Bxf4 {[%emt 0:00:00]} Re2 {[%emt 0:00:09]} 33. Rgf1 {[%emt 0:00:00]} Rc4 {[%emt 0:00:52]} 34. Be5 {[%emt 0:00:00]} Rxa4 {[%emt 0:01:29]} 35. Kg1 {[%emt 0:00:00]} Bxh3 {[%emt 0:00:46]} 36. Rfd1 {[%emt 0:00:00]} Raa2 {[%emt 0:00:12]} 0-1

[Event "Centenario Panaderia Pulido 2023"]
[Site "San Mateo Gran Canaria"]
[Date "2023.12.08"]
[Round "8.15"]
[White "Fernandez Fernandez, Carlos II"]
[Black "Guerrero Orihuela, Jose Luis"]
[Result "0-1"]
[ECO "A56"]
[WhiteElo "1584"]
[BlackElo "1901"]
[Annotator "RC"]
[PlyCount "90"]
[EventDate "2023.12.04"]
[EventType "swiss"]
[EventCountry "ESP"]
[SourceTitle "playchess.com"]
[Source "ChessBase"]
[SourceQuality "1"]
[TimeControl "5400+30"]

1. d4 {[%emt 0:00:04]} Nf6 {[%emt 0:00:04]} 2. c4 {[%emt 0:00:09]} c5 {[%emt 0:00:04]} 3. d5 {[%emt 0:00:12]} e5 {[%emt 1:31:52]} 4. Nc3 {[%emt 0:01:09]} d6 {[%emt 0:00:30]} 5. e4 {[%emt 0:00:16]} Be7 {[%emt 0:00:30]} 6. Nge2 {[%emt 0:01:19]} Nbd7 {[%emt 0:00:30]} 7. Ng3 {[%emt 1:30:51]} O-O {[%emt 0:00:00]} 8. Be2 {[%emt 0:00:00]} Ne8 {[%emt 0:00:00]} 9. O-O {[%emt 0:00:00]} Bg5 {[%emt 0:00:00]} 10. f4 {[%emt 0:00:00]} exf4 {[%emt 0:00:00]} 11. Bxf4 {[%emt 0:00:00]} g6 {[%emt 0:00:00]} 12. Qd2 {[%emt 0:00:00]} Bxf4 {[%emt 0:00:00]} 13. Rxf4 {[%emt 0:00:00]} Ne5 {[%emt 0:00:00]} 14. Nh1 Ng7 {[%emt 0:00:00]} 15. Raf1 Bd7 {[%emt 0:04:30]} 16. Nf2 {[%emt 0:00:00]} g5 17. Rf3 {[%emt 0:00:00]} Nxf3+ {[%emt 0:00:00]} 18. Bxf3 {[%emt 0:00:00]} Qe7 {[%emt 0:00:00]} 19. Bg4 {[%emt 0:00:00]} f6 {[%emt 0:00:00]} 20. h4 {[%emt 0:00:00]} h6 {[%emt 0:00:00]} 21. Bd1 {[%emt 0:00:00]} Rae8 {[%emt 0:00:00]} 22. Ng4 {[%emt 0:00:00]} Bxg4 {[%emt 0:00:00]} 23. Bxg4 {[%emt 0:00:00]} Qe5 {[%emt 0:00:00]} 24. Qe2 {[%emt 0:00:00]} a6 {[%emt 0:00:00]} 25. Bh5 {[%emt 0:00:00]} Re7 {[%emt 0:00:00]} 26. Bg6 {[%emt 0:00:00]} f5 {[%emt 0:00:00]} 27. Kh1 {[%emt 0:00:00]} Rf6 {[%emt 0:00:00]} 28. h5 {[%emt 0:00:00]} Qg3 {[%emt 0:00:00]} 29. Rf3 {[%emt 0:00:00]} Qg4 {[%emt 0:00:00]} 30. Qf1 {[%emt 0:00:00]} Nxh5 {[%emt 0:00:00]} 31. Bxh5 {[%emt 0:00:00]} Qxh5+ {[%emt 0:00:00]} 32. Kg1 {[%emt 0:00:00]} f4 {[%emt 0:00:00]} 33. g3 {[%emt 0:00:00]} Qg4 {[%emt 0:00:00]} 34. Ne2 {[%emt 0:00:00]} Rxe4 {[%emt 0:00:00]} 35. Nc3 {[%emt 0:00:00]} Re7 {[%emt 0:00:00]} 36. Qd3 {[%emt 0:00:00]} Qf5 {[%emt 0:00:00]} 37. Qf1 {[%emt 0:00:19]} Qe5 {[%emt 0:00:00]} 38. Rf2 {[%emt 0:01:30]} Qe3 {[%emt 0:00:00]} 39. Kh1 {[%emt 0:00:48]} Qxg3 {[%emt 0:00:00]} 40. Ne2 {[%emt 0:02:05]} Qe3 {[%emt 0:00:00]} 41. Ng1 {[%emt 0:00:38]} Qe4+ {[%emt 0:00:00]} 42. Kh2 {[%emt 0:00:31]} Qf5 {[%emt 0:00:00]} 43. Nh3 {[%emt 0:01:01]} Re3 {[%emt 0:00:00]} 44. Qg2 {[%emt 0:00:52]} Rg3 {[%emt 0:00:00]} 45. Qf1 {[%emt 0:00:33]} Qg4 {[%emt 0:00:00]} 0-1

[Event "Centenario Panaderia Pulido 2023"]
[Site "San Mateo Gran Canaria"]
[Date "2023.12.09"]
[Round "9.1"]
[White "Korneev, Oleg"]
[Black "Yao, Stefano"]
[Result "1/2-1/2"]
[ECO "C08"]
[WhiteElo "2470"]
[BlackElo "2288"]
[Annotator "RC"]
[PlyCount "21"]
[EventDate "2023.12.04"]
[EventType "swiss"]
[EventCountry "ESP"]
[SourceTitle "playchess.com"]
[Source "ChessBase"]
[SourceQuality "1"]
[TimeControl "5400+30"]

1. e4 {[%emt 0:01:40]} e6 {[%emt 0:00:46]} 2. d4 {[%emt 0:03:51]} d5 {[%emt 0:00:05]} 3. Nd2 {[%emt 0:00:11]} c5 {[%emt 0:00:53]} 4. exd5 {[%emt 0:00:13]} exd5 {[%emt 0:00:05]} 5. Ngf3 {[%emt 0:00:04]} Nf6 {[%emt 0:00:48]} 6. Bb5+ {[%emt 0:00:07]} Bd7 {[%emt 0:00:15]} 7. Bxd7+ {[%emt 0:00:04]} Nbxd7 {[%emt 0:00:07]} 8. O-O {[%emt 0:00:04]} Be7 {[%emt 0:00:18]} 9. dxc5 {[%emt 0:00:05]} Nxc5 {[%emt 0:00:16]} 10. Nb3 {[%emt 0:00:05]} Nce4 {[%emt 0:03:29]} 11. Nfd4 {[%emt 0:00:21]} 1/2-1/2

[Event "Centenario Panaderia Pulido 2023"]
[Site "San Mateo Gran Canaria"]
[Date "2023.12.09"]
[Round "9.2"]
[White "Doluhanova, Evgeniya"]
[Black "Larino Nieto, David"]
[Result "1-0"]
[ECO "A13"]
[WhiteElo "2177"]
[BlackElo "2366"]
[Annotator "ChessBase"]
[PlyCount "91"]
[EventDate "2023.12.04"]
[EventType "swiss"]
[EventCountry "ESP"]
[SourceTitle "playchess.com"]
[Source "ChessBase"]
[SourceQuality "1"]
[TimeControl "5400+30"]

1. c4 {[%emt 0:02:33]} e6 {[%emt 0:04:55]} 2. Nf3 {[%emt 0:00:11]} g5 {[%emt 0:00:05]} 3. d4 {[%emt 0:00:07]} h6 {[%emt 0:00:05]} 4. g4 {[%emt 0:00:08]} d5 {[%emt 0:03:24]} 5. Nc3 {[%emt 0:00:41]} Nc6 {[%emt 0:05:15]} 6. h4 {[%emt 0:04:02]} dxc4 {[%emt 0:03:57]} 7. hxg5 {[%emt 0:04:08]} Bg7 {[%emt 0:03:56]} 8. gxh6 {[%emt 0:01:42]} Nxh6 {[%emt 0:04:51]} 9. Bxh6 {[%emt 0:11:08]} Rxh6 {[%emt 0:06:21]} 10. Rxh6 {[%emt 0:00:14]} Bxh6 {[%emt 0:00:02]} 11. Qa4 {[%emt 0:00:21]} Bd7 {[%emt 0:10:01]} 12. Qxc4 {[%emt 0:01:28]} Qf6 {[%emt 0:00:10]} 13. g5 {[%emt 0:02:52]} Bxg5 {[%emt 0:07:13]} 14. Ne4 {[%emt 0:00:08]} Qf5 {[%emt 0:00:08]} 15. Nexg5 {[%emt 0:09:45]} f6 {[%emt 0:00:26]} 16. Nh3 {[%emt 0:09:24]} O-O-O {[%emt 0:00:19]} 17. Qc5 {[%emt 0:00:23]} Qe4 {[%emt 0:21:36]} 18. Rc1 {[%emt 0:08:56]} Be8 {[%emt 0:01:07]} 19. b4 {[%emt 0:01:32]} Bh5 {[%emt 0:09:06]} 20. Nhg1 {[%emt 0:13:04]} Rd5 {[%emt 0:00:59]} 21. Qc3 {[%emt 0:01:24]} e5 {[%emt 0:01:52]} 22. dxe5 {[%emt 0:10:30]} fxe5 {[%emt 0:00:32]} 23. Qc4 {[%emt 0:03:58]} Qxc4 {[%emt 0:03:11]} 24. Rxc4 {[%emt 0:00:23]} a5 {[%emt 0:00:01]} 25. a3 {[%emt 0:00:28]} axb4 {[%emt 0:04:08]} 26. axb4 {[%emt 0:00:07]} Rb5 {[%emt 0:00:16]} 27. e3 {[%emt 0:00:44]} Rb6 {[%emt 0:00:49]} 28. Rh4 {[%emt 0:00:54]} Be8 {[%emt 0:03:14]} 29. Rh8 {[%emt 0:00:58]} Kd8 {[%emt 0:00:04]} 30. b5 {[%emt 0:00:28]} Na7 {[%emt 0:00:02]} 31. Nxe5 {[%emt 0:01:18]} Nxb5 {[%emt 0:00:02]} 32. Bxb5 {[%emt 0:02:19]} Rxb5 {[%emt 0:00:01]} 33. f4 {[%emt 0:00:16]} c5 {[%emt 0:00:36]} 34. Ne2 {[%emt 0:00:20]} Rb3 {[%emt 0:02:06]} 35. Kf2 {[%emt 0:00:19]} Ke7 {[%emt 0:00:23]} 36. Ng3 {[%emt 0:00:35]} Ba4 {[%emt 0:00:07]} 37. Ne4 {[%emt 0:00:59]} Rb2+ {[%emt 0:00:05]} 38. Kg3 {[%emt 0:00:20]} Re2 {[%emt 0:01:29]} 39. Rh7+ {[%emt 0:01:20]} Kd8 {[%emt 0:00:56]} 40. Nxc5 {[%emt 0:01:41]} Rxe3+ {[%emt 0:00:04]} 41. Kf2 {[%emt 0:00:13]} Ra3 {[%emt 0:00:07]} 42. Nxa4 {[%emt 0:00:36]} Rxa4 {[%emt 0:00:02]} 43. Kg3 {[%emt 0:00:07]} b5 {[%emt 0:00:52]} 44. Rb7 {[%emt 0:00:06]} Ra3+ {[%emt 0:00:03]} 45. Kg4 {[%emt 0:00:06]} Rb3 {[%emt 0:00:02]} 46. Nf7+ {[%emt 0:00:12]} 1-0